Cogmind - Beta 12 @@@ ROGUE MODE // 2024.01.06 @ 20:34:59 Player: Inomamais Result: Destroyed by S-10 Pest with Light Assault Rifle Performance ------------- Evolutions (0) 0 Regions Visited (1) 200 Robots Destroyed (9) 45 Value Destroyed (193) 193 Prototype IDs (0) 0 Alien Tech Used (0) 0 Bonus (0) 0 TOTAL SCORE: 438 Bonus ------- None Cogmind --------- Core Integrity 0/250 Matter 266/300 Energy 99/100 System Corruption 0% Temperature Hot (277) Movement Walking (190) Ox1 Location -10/Materials Parts ------- > --- POWER (1) -------- (None) > --- PROPULSION (2) --- Aluminum Leg Aluminum Leg > --- UTILITY (2) ------ Large Storage Unit Hardened Light Armor Plating > --- WEAPON (2) ------- Medium Laser Light Assault Rifle > --- INVENTORY (15) --- Improved Aluminum Leg Improved Aluminum Leg Heat Sink Large Matter Pod (31) Hardened Light Armor Plating Hardened Light Armor Plating Hardened Light Armor Plating Small Laser Peak State ------------ > --- POWER ------------ Light Ion Engine > --- PROPULSION ------- Improved Aluminum Leg Improved Aluminum Leg > --- UTILITY ---------- Large Storage Unit Seismic Detector > --- WEAPON ----------- EM Pulse Gun Assault Rifle > --- INVENTORY -------- Light Ion Engine Light Ion Engine Light Treads Aluminum Leg Aluminum Leg Aluminum Leg Improved Aluminum Leg Improved Aluminum Leg Large Matter Pod Hardened Light Armor Plating Hardened Light Armor Plating Hardened Light Armor Plating Medium Laser Small Laser Light Assault Rifle [Rating: 11] Favorites ----------- Power Light Ion Engine Engine Light Ion Engine Propulsion Improved Aluminum Leg Leg Improved Aluminum Leg Utility Seismic Detector Device Seismic Detector Storage Large Storage Unit Processor Targeting Computer Protection Hardened Light Armor Plating Weapon Assault Rifle Energy Gun EM Pulse Gun Ballistic Gun Assault Rifle Build | -11 -10 ------- Run | Jun Mat Slots Evolved . | . . Power . | . . Propulsion . | . . Utility . | . . Weapon . | . . Parts Attached 18 | 6 12 Power 2 | 1 1 Engine 2 | 1 1 Core . | . . Reactor . | . . Propulsion 7 | 2 5 Treads . | . . Leg 7 | 2 5 Wheel . | . . Hover . | . . Flight . | . . Utility 5 | 1 4 Device 1 | . 1 Storage 2 | 1 1 Processor 1 | . 1 Hackware . | . . Protection 1 | . 1 Artifact . | . . Weapon 4 | 2 2 Energy Gun 2 | 1 1 Energy Cannon . | . . Ballistic Gun 2 | 1 1 Ballistic Cannon . | . . Launcher . | . . Special Weapon . | . . Impact Weapon . | . . Slashing Weapon . | . . Piercing Weapon . | . . Special Melee Weapon . | . . Unidentified Prototypes . | . . Parts Lost 8 | . 8 Power 2 | . 2 Propulsion 3 | . 3 Utility 1 | . 1 Weapon 2 | . 2 Highest Loss Streak 8 | . 8 To Critical Strikes . | . . Average Slot Usage (%) 99 | . 99 Engine 13 | . 13 Leg 28 | . 28 Device 12 | . 12 Storage 14 | . 14 Protection 1 | . 1 Energy Gun 14 | . 14 Ballistic Gun 14 | . 14 Naked Turns . | . . Heaviest Build 28 | 12 28 Greatest Support 26 | 20 26 Greatest Overweight (x) 1 | . 1 Average Overweight (x) . | . . Largest Inventory Capacity 15 | 8 15 Average Capacity 12 | 6 13 Most Carried 15 | 6 15 Average Carried 11 | 3 12 Final Capacity 15 | 8 15 Final Carried 8 | 6 8 Class Distribution -------------------- 100% | Mutant Dominant Class ---------------- Mutant | -10/Materials Resources | -11 -10 ----------- Run | Jun Mat Matter Collected 419 | 159 260 Remotely . | . . Salvage Created 314 | . 314 Parts 22 | . 22 Haulers Intercepted 1 | . 1 Recyclers Shooed . | . . Parts Field Recycled . | . . Retrieved Matter . | . . Parts Self-Destructed . | . . Prevented . | . . Kills | -11 -10 ------- Run | Jun Mat Combat Hostiles Destroyed 7 | . 7 Guns 7 | . 7 Classes Destroyed 4 | . 4 Worker 1 | . 1 Hauler 1 | . 1 Swarmer 2 | . 2 Grunt 5 | . 5 Best Kill Streak 4 | . 4 Combat Bots Only 3 | . 3 Max Kills in Single Turn 1 | . 1 Gunslinging . | . . Exploded . | . . Melee . | . . Uniques/NPCs Destroyed . | . . Combat | -11 -10 -------- Run | Jun Mat Damage Taken 1256 | . 1256 Core 256 | . 256 Absorbed by Shields . | . . Core Remaining (%) 100 | 100 . Volleys Fired 37 | . 37 Largest 2 | . 2 Hottest 70 | . 70 Shots Fired 68 | . 68 Gun 68 | . 68 Cannon . | . . Launcher . | . . Special . | . . Kinetic 38 | . 38 Thermal 9 | . 9 Explosive . | . . Electromagnetic 21 | . 21 Robot Hit Streak 9 | . 9 Robot Miss Streak 3 | . 3 Penetration Max . | . . Secondary Targets 1 | . 1 Max Gunslinging Chain 1 | . 1 Shots Hit Robots 42 | . 42 Core Hits 15 | . 15 Critical Kills . | . . Critical Parts Destroyed 1 | . 1 Critical Strikes 1 | . 1 Destroy 1 | . 1 Melee Attacks . | . . Impact . | . . Slashing . | . . Piercing . | . . Sneak Attacks . | . . Combat Hostiles . | . . Follow-up Attacks . | . . Damage Inflicted 522 | . 522 Guns 522 | . 522 Cannons . | . . Explosions . | . . Melee . | . . Ramming . | . . Kinetic 246 | . 246 Thermal 76 | . 76 Explosive . | . . Electromagnetic 200 | . 200 Impact . | . . Slashing . | . . Piercing . | . . Highest Corruption . | . . Average Corruption . | . . Corruption Purged . | . . Corruption Blocked . | . . Overload Shots . | . . Overflow Damage . | . . Projectiles . | . . Explosions . | . . Melee . | . . Knockbacks . | . . Impact . | . . Kinetic . | . . Secondary . | . . Self-Inflicted Damage . | . . Shots . | . . Rammed . | . . Targets Rammed . | . . Kicked . | . . Crushed . | . . Highest Temperature 337 | . 337 Average Temperature 121 | . 121 Received Heat Transfer 288 | . 288 Siege Activations . | . . Robots Corrupted . | . . Combat Hostiles . | . . Parts Fried . | . . Impact Corruptions . | . . Robots Melted . | . . Combat Hostiles . | . . Parts Melted . | . . Heat Transferred 222 | . 222 Parts Sabotaged . | . . Parts Stolen . | . . Parts Stripped . | . . Power Chain Reactions . | . . Missiles Intercepted . | . . Alert | -11 -10 ------- Run | Jun Mat Peak Influence 177 | . 177 Initial . | . . Average 46 | . 51 Maximum Alert Level . | . . Low Security (%) 100 | 100 100 Level 1 . | . . Level 2 . | . . Level 3 . | . . Level 4 . | . . Level 5 . | . . High Security . | . . Max Security . | . . Squads Dispatched 2 | . 2 Investigation . | . . Extermination . | . . Reinforcement 2 | . 2 Assault . | . . Garrison . | . . Intercept . | . . Searches Triggered . | . . Construction Impeded . | . . Haulers Reinforced . | . . Active Scanning Responses . | . . Cargo Convoy Interrupts . | . . Stealth | -11 -10 --------- Run | Jun Mat Distress Signals . | . . Communications Jammed . | . . Distress Signals . | . . Times Spotted 15 | . 15 Peak Tracking Total 8 | . 8 Tactical Retreats . | . . Traps | -11 -10 ------- Run | Jun Mat Traps Triggered . | . . Indirectly . | . . Trap Hack Attempts . | . . Triggered . | . . Disarmed . | . . Reprogrammed . | . . Reused . | . . Traps Extracted . | . . Installed . | . . Triggered . | . . Machines | -11 -10 ---------- Run | Jun Mat Machines Disabled . | . . Max in Single Turn . | . . Machines Repaired . | . . Machines Sabotaged . | . . Overloaded Fab Kills . | . . Hacking | -11 -10 --------- Run | Jun Mat Machines Accessed 1 | . 1 Terminals 1 | . 1 Fabricators . | . . Repair Stations . | . . Recycling Units . | . . Scanalyzers . | . . Garrison Access . | . . Total Hacks 2 | . 2 Successful 1 | . 1 Failed 1 | . 1 Catastrophic . | . . Database Lockouts . | . . Manual 1 | . 1 Terminals 2 | . 2 Fabricators . | . . Repair Stations . | . . Recycling Units . | . . Scanalyzers . | . . Garrison Access . | . . Terminal Hacks 1 | . 1 Locate Traps 1 | . 1 Fabricator Hacks . | . . Repair Station Hacks . | . . Recycling Unit Hacks . | . . Scanalyzer . | . . Garrison Access Hacks . | . . Unauthorized Hacks . | . . Terminals . | . . Fabricators . | . . Repair Stations . | . . Recycling Units . | . . Scanalyzers . | . . Garrison Access . | . . Data Cores Recovered . | . . Used . | . . Hacking Detections 1 | . 1 Full Trace Events . | . . Feedback Events . | . . Feedback Blocked . | . . Robot Schematics Acquired . | . . Robots Built . | . . Authchips . | . . Time . | . . Total Robot Build Rating . | . . Part Schematics Acquired . | . . Parts Built . | . . Authchips . | . . Time . | . . Total Part Build Rating . | . . Parts Repaired . | . . Time . | . . Parts Recycled . | . . Recycled Matter . | . . Retrieved Matter . | . . Retrieved Components . | . . Parts Scanalyzed . | . . Part Schematics Acquired . | . . Parts Damaged . | . . Bothacking | -11 -10 ------------ Run | Jun Mat Used RIF Installer . | . . Robots Hacked . | . . Non-combat . | . . Combat . | . . Robot Hacks Applied . | . . Relay Couplers Released . | . . Fabnet Peak Effective % . | . . Robots Rewired . | . . Allies Hacked . | . . Hacks Repelled . | . . Allies | -11 -10 -------- Run | Jun Mat Total Allies . | . . Largest Group . | . . Highest-Rated Group . | . . Highest-Rated Ally . | . . Total Orders . | . . Ally Attacks . | . . Total Damage . | . . Kills . | . . Allies Corrupted . | . . Allies Melted . | . . Intel | -11 -10 ------- Run | Jun Mat Robot Analysis Total . | . . Derelict Logs Recovered . | . . Drone Launches . | . . Drone Recoveries . | . . Exploration | -11 -10 ------------- Run | Jun Mat Turns Passed 864 | 86 778 Spaces Moved 422 | 62 360 Core 4 | 4 . Treads . | . . Legs 418 | 58 360 Wheels . | . . Hover . | . . Flight . | . . Fastest Speed 50 | 50 120 Average Speed 150 | 115 156 Slowest Speed 190 | 120 190 Overloaded Moves . | . . Propulsion Burnouts . | . . Robots Hopped . | . . Cave-ins Triggered . | . . Exploration Rate (%) 27 | 4 50 Regions Visited 1 Branch Regions . Pre-discovered Areas . | . . Known Exits Taken . | . . Unknown Exits Taken 1 | 1 . Scrap Searched . | . . Spaces Dug . | . . Terrain Destroyed . | . . Melee . | . . Projectile . | . . AOE . | . . Terrain Rammed . | . . Walls Destroyed . | . . Machines Disabled . | . . Actions | -11 -10 --------- Run | Jun Mat Total 585 | 73 512 Wait 84 | . 84 Move 421 | 61 360 Hop . | . . Pick Up 19 | 6 13 Fast Attach 7 | 6 1 Attach 7 | . 7 Detach . | . . Swap 4 | . 4 Drop 6 | . 6 Fire 37 | . 37 Melee . | . . Ram . | . . Kick . | . . Crush . | . . Escape Stasis . | . . Rewire . | . . Trap . | . . Miscellaneous . | . . Route ------- -11/Junkyard -10/Materials History --------- Turn | Location | Event 2 | -11/Junkyard | Discovered new exit (range 16) 87 | -11/Junkyard | Entered Materials 303 | -10/Materials | Build established: Mutant 831 | -10/Materials | Core integrity fell below 50% 859 | -10/Materials | Core integrity fell below 20% 865 | -10/Materials | Destroyed by S-10 Pest with Light Assault Rifle Last Messages --------------- 00812_ Imp. Aluminum Leg destroyed. 00813_ K-01 Serf collects debris. 00818_ Lgt. Ion Engine destroyed. 00819_ S-10 Pest destroyed. 00819_ K-01 Serf collects debris. 00820_ EM Pulse Gun destroyed. 00821_ K-01 Serf collects debris. 00823_ S-10 Pest suffers critical hit (Destroy). 00823_ Destroyed Lgt. Ion Engine. 00824_ Assault Rifle destroyed. 00825_ K-01 Serf collects debris. 00830_ S-10 Pest destroyed. 00830_ K-01 Serf collects debris. 00835_ K-01 Serf destroyed. 00837_ K-01 Serf collects debris. 00841_ S-10 Pest destroyed. 00843_ Imp. Aluminum Leg destroyed. 00847_ Aluminum Leg destroyed. 00850_ Lgt. Ion Engine destroyed. 00861_ Acquired 35 matter. Map ----- +----------------------------------------------------+ | ## " " #????????????????? ??????????????? | | ######## #???????????????? ?????????????? | | ???????# """ #??????????????? ?????????????? | | ???????# """ #??????????????? """ #????????? | | ???????# """ #?????????????? """ #????????? | | ???????# #?????????????? """ #????????? | | ############+################## ^ ???????? | | | ???????? | | = !||| ????????? | | **[ =| |* "Y" ????????????? | | #####+#############+####### """ ????????????? | | ! #==*=[ #????# #?# ######?????????????? | | # """" #????# #?# #??????????????????? | | # """" #????# #?# #??????????????????? | | # """" #????# """ #?# #??????????????????? | | ] # #????# """"" #?# #??????????????????? | | # #????# """"" #?# #??????????????????? | | ##########????# """"" #?# #??????????????????? | | ??????????????# """ #?# #??????????????????? | | ??????????????#####???###?# #??????????????????? | | #???######???????????###### #??????????????????? | | ##### #???????????# # #??????????????????? | | ####????????# # #??????????????????? | | T +????????# # #??????????????????? | | ##### ####????????# =# ###### #?????????? | | #???######???????????# =@# #?????????? | | ?????????????????????#%=[*g #?????????? | | ???????????????? """ ss!%%# #?????????? | | ?????????????? [o #%== # #?????????? | | ?????????????####+##?# # o #?????????? | | ######???????????????###### ????????? | | #???????????????????? ????????? | | #????????????????????# ????????? | | ##????????????????????## #####+#####?????????? | | #####??????????????????????? #???????????????????? | | ##########??????????????????/#???????????????????? | | #?????????????????? #???????????????????? | | #?????????????????? #???????????????????? | | #?????????????????? ????????????????????? | | """ """ #?????????????????? ????????????????????? | | """ """ #?????????????????? ????????????????????? | | """ """ #???????????????????????????????????????? | | #???????????????????????????????????????? | | #???????????????????????????????????????? | | ##########???????????????????????????????????????? | | ?????????????????????????????????????????????????? | | ?????????????????????????????????????????????????? | | ?????????????????????????????????????????????????? | | ?????????????????????????????????????????????????? | | | +----------------------------------------------------+ Best States ------------- Heat Dissipation 25 Energy Generation 10 Energy Capacity 125 Matter Stores 300 Matter Capacity 300 Sight Range 16 Terrain Scan Density 10 Armor Coverage 150 Evasion (%) 55 Targeting Accuracy 5 Item Schematics ----------------- None Robot Schematics ------------------ None Fabricated ------------ Nothing Alien Tech Used ----------------- None Achievements -------------- None Challenges ------------ None Game ------ Seed MiningGyrokineticMachine Manual? 0 Play Time 00:09:50 Cumulative 38.1 hours Start 2024.01.06 @ 20:26:44 End 2024.01.06 @ 20:34:59 Sessions 1 Manual Loads 0 Difficulty Rogue Special Mode None Game No. 24 Rogue 23 Adventurer 1 Explorer 0 Win Type - Total 0 Types 0/0/0/0/0/0/0/0/0 Lore% 34 Gallery% 26 Achievement% 26 Wizard Run 0 Options --------- ASCII 1 Keyboard 1 Movement Numpad Keybinds 0 Fullscreen 1 Font 16/Smallcaps Map View 76x50 Tactical HUD 1 Map Filters NONE Filters NONE Steam 1 RUN: 7c65b1cd-432b-47cf-9ead-4466c5be022a